bitfinex-derivatives/quotes_SOLF0:USTF0_20260118
["timestamp","ask_amount","ask_price","bid_price","bid_amount"]
[1768747267939,3.22415564,142.34,142.31,0.05149578]
[1768747270034,1.77024845,142.33,142.27,3.02140962]
[1768747270236,3.22415564,142.32,142.27,3.02140962]
[1768747270642,3.22415564,142.32,142.25,3.02140962]
[1768747271345,0.04680245,142.3,142.25,3.02140962]
[1768747284046,3.09616135,142.36,142.27,1.77024845]
[1768747284246,3.09616135,142.36,142.28,3.33528952]
[1768747284550,4.8664098,142.36,142.28,3.33528952]
[1768747285652,3.09616135,142.36,142.28,3.33528952]
[1768747287151,3.09616135,142.36,142.29,3.33528952]
[1768747291056,4.8664098,142.36,142.29,3.33528952]
[1768747295358,3.09616135,142.36,142.29,3.33528952]
[1768747295554,4.8664098,142.36,142.29,3.33528952]
[1768747296058,3.20028213,142.35,142.29,3.33528952]
[1768747302760,3.20028213,142.33,142.25,3.27133526]
[1768747303061,3.20028213,142.33,142.26,3.27133526]
[1768747311370,4.97053058,142.32,142.26,3.27133526]
[1768747312264,3.14281784,142.31,142.26,3.27133526]
[1768747315074,3.14281784,142.31,142.23,5.09246061]
[1768747315269,3.14281784,142.31,142.24,3.32118]
[1768747318175,3.14281784,142.31,142.25,3.32118]
[1768747323678,3.14281784,142.3,142.23,5.09246061]
[1768747325084,3.14281784,142.3,142.23,3.32118]
[1768747326884,0.04460156,142.28,142.25,0.04639414]
[1768747329183,3.1874194,142.28,142.25,0.04639414]
[1768747332376,3.1874194,142.28,142.23,3.32118]
[1768747335797,0.04460156,142.28,142.23,3.32118]
[1768747338079,3.1874194,142.28,142.23,3.32118]
[1768747338992,0.04460156,142.28,142.23,3.32118]
[1768747362699,3.14624002,142.28,142.23,3.32118]
[1768747362907,9.47474002,142.28,142.23,3.32118]
[1768747365902,6.3289,142.27,142.23,3.32118]
[1768747368805,6.3293,142.26,142.18,1.77128061]
[1768747369805,6.3293,142.26,142.21,0.04478633]
[1768747370905,6.3293,142.26,142.22,3.08716993]
[1768747371906,98.433,142.3,142.22,3.08716993]
[1768747371907,3.10163846,142.28,142.22,3.08716993]
[1768747372710,3.10163846,142.28,142.24,0.04695419]
[1768747372913,6.3293,142.26,142.24,0.04695419]
[1768747376012,4.87381837,142.28,142.24,0.04695419]
[1768747386327,1.77217991,142.27,142.24,0.04695419]
[1768747388031,1.81641689,142.27,142.24,0.04695419]
[1768747390027,0.04423698,142.27,142.24,0.04695419]
[1768747390331,1.81641689,142.27,142.24,0.04695419]
[1768747391636,4.98440359,142.27,142.24,0.04695419]
[1768747406545,3.21222368,142.27,142.24,0.04695419]
[1768747468117,3.13310141,142.26,142.18,3.32220532]
[1768747468815,3.13310141,142.26,142.19,3.32220532]
[1768747469517,0.04729927,142.24,142.19,3.32220532]
[1768747492955,3.08464899,142.24,142.19,3.32220532]
[1768747507365,3.08464899,142.24,142.17,3.01311687]
[1768747507560,3.08464899,142.24,142.17,4.78595768]
[1768747508162,3.08464899,142.24,142.18,3.01311687]
[1768747512964,10.01981808,142.23,142.16,3.01311687]
[1768747513169,5.20962755,142.22,142.16,3.01311687]
[1768747513370,4.81019053,142.23,142.16,3.01311687]
[1768747513770,0.05185733,142.2,142.16,3.01311687]
[1768747535694,0.05185733,142.2,142.14,20.89751512]
[1768747535900,0.05185733,142.2,142.16,3.28902441]
[1768747537001,3.13973134,142.23,142.16,3.28902441]
[1768747537297,3.32763282,142.26,142.18,3.20531224]
[1768747537499,8.53350245,142.25,142.18,3.20531224]
[1768747537699,3.32763282,142.25,142.18,3.20531224]
[1768747538300,3.32763282,142.25,142.19,4.97815305]
[1768747541101,5.10047363,142.25,142.19,3.20531224]
[1768747542896,3.32763282,142.25,142.19,3.20531224]
[1768747543302,5.10047363,142.25,142.19,3.20531224]
[1768747544701,1.77284081,142.24,142.19,3.20531224]
[1768747545604,5.10047363,142.24,142.19,3.20531224]
[1768747547006,3.32763282,142.24,142.19,3.20531224]
[1768747547204,5.10047363,142.24,142.19,3.20531224]
[1768747549207,3.32763282,142.23,142.17,3.20531224]
[1768747559014,5.10072766,142.23,142.17,3.20531224]
[1768747566617,3.32763282,142.23,142.17,3.20531224]
[1768747598951,8.43429686,142.22,142.17,3.20531224]
[1768747599145,1.77309484,142.24,142.17,3.20531224]
[1768747599340,5.22278833,142.23,142.17,3.20531224]
[1768747599540,5.22278833,142.22,142.14,20.80462214]
[1768747599852,1.77309484,142.2,142.14,20.80462214]
[1768747600048,1.77309484,142.18,142.14,4.53071864]
[1768747600252,1.77309484,142.16,142.09,3.19613143]
[1768747600854,1.77309484,142.14,142.06,3.19613143]
[1768747605056,1.77309484,142.13,142.06,3.19613143]
[1768747608864,1.77309484,142.15,142.06,3.19613143]
[1768747609266,6.3335,142.17,142.07,1.77309484]
[1768747609566,1.77309484,142.15,142.07,4.96922627]
[1768747610263,1.77309484,142.15,142.1,0.04879274]
[1768747612960,1.77309484,142.15,142.07,3.19613143]
[1768747612961,8.10739484,142.15,142.07,3.19613143]
[1768747613161,0.05147658,142.14,142.07,3.19613143]
[1768747615462,0.05147658,142.14,142.04,3.0816565]
[1768747615768,1.82457142,142.14,142.06,3.0816565]
[1768747615970,1.77309484,142.14,142.06,3.0816565]
[1768747616469,0.04829517,142.11,142.06,3.0816565]
[1768747618061,0.04829517,142.11,142.06,4.85475134]
[1768747618265,0.04829517,142.11,142.06,3.0816565]
[1768747618569,0.04829517,142.11,142.06,4.85475134]
[1768747620059,0.04829517,142.11,142.06,3.0816565]
[1768747622071,264.64,142.16,142.08,3.0816565]
[1768747622072,6.3343,142.15,142.08,3.0816565]
[1768747622765,6.3347,142.14,142.08,3.0816565]
[1768747623970,6.3351,142.13,142.08,3.0816565]
[1768747624567,6.3357,142.12,142.06,3.0816565]
[1768747624771,1.77572501,142.1,142.02,3.0816565]
[1768747624971,1.77572501,142.08,142.02,3.0816565]
[1768747625873,8.11322501,142.08,142.02,3.0816565]
[1768747626172,6.3375,142.08,142.02,3.0816565]
[1768747627273,100.36042501,142.08,142.0,8.964e-05]
[1768747627471,1.77572501,142.06,142.0,8.964e-05]
[1768747627667,1.77572501,142.04,141.9,169.00733595]
[1768747627967,1.77572501,142.04,141.95,1.77572501]
[1768747628175,1.77572501,142.04,141.9,169.00733595]
[1768747628369,98.5973,142.06,141.95,1.77572501]
[1768747628569,1.77572501,142.04,141.95,1.77572501]
[1768747629265,1.77572501,142.04,141.96,3.0816565]
[1768747629869,6.3397,142.03,141.96,3.0816565]
[1768747630372,6.3397,142.03,141.98,3.0816565]
[1768747633968,1.77572501,142.05,141.98,3.0816565]
[1768747634972,27.4571,142.09,141.98,3.0816565]
[1768747635281,1.77572501,142.05,141.98,3.0816565]
[1768747635469,1.77572501,142.05,141.99,3.0816565]
[1768747636371,6.3371,142.09,141.99,3.0816565]
[1768747636584,285.94,142.1,142.0,3.0816565]
[1768747636879,1.77572501,142.07,142.0,3.0816565]
[1768747637173,0.05265996,142.06,142.04,0.04595395]
[1768747637676,264.82,142.11,142.02,3.0816565]
[1768747637871,1.77572501,142.07,142.02,3.0816565]
[1768747638974,264.82,142.11,142.02,3.0816565]
[1768747639181,1.77572501,142.07,142.02,3.0816565]
[1768747639571,264.82,142.11,142.02,3.0816565]
[1768747639772,1.77572501,142.08,142.02,3.0816565]
[1768747640473,1.77572501,142.08,142.04,0.05280489]
[1768747640773,1.77572501,142.08,142.04,3.13446139]
[1768747640980,1.77572501,142.09,142.04,3.13446139]
[1768747641972,266.59572501,142.11,142.04,3.13446139]
[1768747642580,0.04426907,142.09,142.04,3.13446139]
[1768747642980,1.81999408,142.09,142.04,3.13446139]
[1768747649683,0.04426907,142.09,142.04,3.13446139]
[1768747651984,264.84,142.16,142.04,3.13446139]
[1768747652181,1.77572501,142.11,142.05,3.15172503]
[1768747652689,264.84,142.16,142.05,3.15172503]
[1768747652984,1.77572501,142.12,142.05,3.15172503]
[1768747653390,1.77572501,142.12,142.09,0.04805647]
[1768747655095,1.77572501,142.12,142.07,3.15172503]
[1768747655796,1.77572501,142.1,142.07,3.15172503]
[1768747656493,1.77572501,142.1,142.07,3.19629033]
[1768747660691,1.82508479,142.1,142.07,3.19629033]
[1768747667293,0.04935978,142.1,142.07,3.19629033]
[1768747667493,1.77572501,142.13,142.07,3.19629033]
[1768747667999,1.77572501,142.11,142.07,3.15172503]
[1768747668197,1.77572501,142.09,142.01,1.77572501]
[1768747668797,1.77572501,142.09,142.04,0.04975803]
[1768747668993,2.501e-05,142.09,142.04,0.04975803]
[1768747670296,0.05218702,142.08,142.04,3.32973737]
[1768747675214,1.77572501,142.07,142.04,3.32973737]
[1768747676812,0.05218702,142.08,142.04,3.32973737]
[1768747677111,1.77572501,142.07,142.04,3.32973737]
[1768747681007,1.777063,142.07,142.04,3.32973737]
[1768747683915,0.05218702,142.08,142.04,3.32973737]
[1768747684211,1.777063,142.06,142.04,3.32973737]
[1768747684608,1.777063,142.06,141.98,1.777063]
[1768747685011,1.777063,142.06,141.96,20.11844994]
[1768747685314,0.19858927,142.08,141.98,1.777063]
[1768747685515,1.777063,142.06,141.98,1.777063]
[1768747685912,0.19858927,142.08,141.98,1.777063]
[1768747686112,1.777063,142.06,141.98,1.777063]
[1768747686318,1.777063,142.06,141.96,13.08644994]
[1768747686513,1.777063,142.06,141.98,3.18289439]
[1768747688711,1.777063,142.06,141.99,3.18289439]
[1768747688921,0.19858927,142.08,141.99,3.18289439]
[1768747689122,1.777063,142.06,141.99,3.18289439]
[1768747689511,0.19858927,142.08,141.99,3.18289439]
[1768747689714,1.777063,142.07,141.99,3.18289439]
[1768747690024,0.19858927,142.08,141.99,3.18289439]
[1768747690225,1.777063,142.07,141.99,3.18289439]
[1768747691922,1.97565227,142.07,141.99,3.18289439]
[1768747692419,1.777063,142.05,141.99,3.18289439]
[1768747692613,1.97565227,142.05,141.99,3.18289439]
[1768747692815,1.777063,142.03,141.97,3.18289439]
[1768747696027,0.19858927,142.04,141.97,3.18289439]
[1768747696226,1.777063,142.04,141.97,3.18289439]
[1768747696523,6.3379,142.07,141.99,1.777063]
[1768747696524,1.777063,142.07,141.99,1.777063]
[1768747696724,1.777063,142.07,142.0,3.18289439]
[1768747696924,0.19858927,142.08,142.0,3.18289439]
[1768747697226,1.97565227,142.08,142.0,3.18289439]
[1768747697722,1.777063,142.09,142.01,3.18289439]
[1768747697924,1.97565227,142.12,142.03,3.23063136]
[1768747698526,1.97565227,142.12,142.03,3.18289439]
[1768747698735,1.97565227,142.12,142.06,3.22733635]
[1768747700618,0.04890557,142.1,142.06,3.22733635]
[1768747701126,1.777063,142.13,142.06,3.22733635]
[1768747703231,1.97565227,142.14,142.06,3.22733635]
[1768747703422,1.97565227,142.14,142.07,3.07935604]
[1768747704023,0.19858927,142.14,142.07,3.07935604]
[1768747704231,0.24828005,142.16,142.09,3.13248359]
[1768747704433,1.777063,142.14,142.09,3.13248359]
[1768747704727,0.24828005,142.16,142.09,3.07935604]
[1768747704931,1.777063,142.14,142.1,6.3362]
[1768747705132,1.777063,142.14,142.1,6.38931717]
[1768747707926,2.02534305,142.14,142.1,6.38931717]
[1768747708331,0.24828005,142.14,142.1,6.38931717]
[1768747708633,1.777063,142.13,142.1,6.38931717]
[1768747714036,0.24828005,142.16,142.1,6.38931717]
[1768747714235,1.777063,142.13,142.1,6.38931717]
[1768747718137,0.24828005,142.16,142.1,6.38931717]
[1768747718338,1.777063,142.14,142.1,6.38931717]
[1768747718739,1.777063,142.14,142.1,9.48047092]
[1768747719733,1.777063,142.12,142.1,9.48047092]
[1768747719934,1.777063,142.12,142.1,0.05311717]
[1768747720638,0.24608867,142.15,142.1,0.05311717]
[1768747720840,1.777063,142.12,142.08,3.09115375]
[1768747722338,0.24608867,142.15,142.08,3.09115375]
[1768747722532,1.777063,142.12,142.08,3.09115375]
[1768747723832,1.777063,142.1,142.04,3.09115375]
[1768747725337,0.24608867,142.12,142.04,3.09115375]
[1768747725542,1.777063,142.12,142.04,3.09115375]
[1768747727338,1.777063,142.12,142.07,3.14083428]
[1768747729038,0.04752711,142.11,142.07,3.14083428]
[1768747743149,1.77569969,142.13,142.07,3.14083428]
[1768747743347,1.77569969,142.14,142.07,3.14083428]
[1768747745760,1.77569969,142.14,142.1,9.59650874]
[1768747746056,1.77569969,142.14,142.11,3.26020874]
[1768747746258,0.34344487,142.17,142.11,3.26020874]
[1768747746457,1.77569969,142.15,142.11,3.26020874]
[1768747746658,5.22389806,142.14,142.11,3.31256177]
[1768747746844,1.77569969,142.15,142.11,3.31256177]
[1768747747045,5.22389806,142.14,142.11,3.31256177]
[1768747747358,1.77569969,142.15,142.11,3.31256177]
[1768747747856,1.77569969,142.16,142.11,3.31256177]
[1768747748858,1.77569969,142.16,142.13,6.3349]
[1768747751052,0.34344487,142.17,142.13,6.3349]
[1768747751257,6.998406,142.16,142.13,6.3349]
[1768747751457,1.77569969,142.16,142.13,6.3349]
[1768747752853,1.77569969,142.16,142.11,9.64826177]
[1768747753047,1.77569969,142.16,142.12,3.26020874]
[1768747758958,1.77569969,142.16,142.12,9.59550874]
[1768747764561,1.77569969,142.14,142.11,0.05235303]
[1768747764767,1.77569969,142.14,142.1,3.29364083]
[1768747765367,0.34259497,142.15,142.1,3.29364083]
[1768747765571,1.77569969,142.14,142.1,3.29364083]
[1768747765961,1.77569969,142.14,142.11,0.04528147]
[1768747766364,0.34259497,142.17,142.11,0.04528147]
[1768747766673,1.77569969,142.14,142.11,0.04528147]
[1768747767358,1.77569969,142.14,142.11,3.3389223]
[1768747769576,0.34259497,142.16,142.11,3.3389223]
[1768747769778,1.77569969,142.14,142.11,3.3389223]
[1768747770881,1.77569969,142.14,142.09,3.29364083]
[1768747789690,1.77569969,142.15,142.09,3.29364083]
[1768747791292,0.34259497,142.16,142.09,3.29364083]
[1768747791492,6.9982462,142.15,142.09,3.29364083]
[1768747791791,1.77569969,142.15,142.09,3.29364083]
[1768747792489,0.34259497,142.16,142.09,3.29364083]
[1768747792788,1.77569969,142.14,142.09,3.29364083]
[1768747800497,0.3430042,142.19,142.09,3.29364083]
[1768747800696,1.77569969,142.17,142.1,3.33083903]
[1768747800995,5.22407261,142.16,142.1,3.33083903]
[1768747801194,1.77569969,142.17,142.1,3.33083903]
[1768747801394,5.2241175,142.16,142.1,3.33083903]
[1768747801595,1.77569969,142.17,142.1,3.33083903]
[1768747801786,5.22411423,142.16,142.1,3.33083903]
[1768747801990,1.77569969,142.17,142.1,3.33083903]
[1768747802193,5.22411423,142.16,142.1,3.33083903]
[1768747802398,2.11870389,142.18,142.1,3.33083903]
[1768747802603,5.22418858,142.17,142.1,3.33083903]
[1768747802896,1.77569969,142.19,142.1,3.33083903]
[1768747803095,5.22566697,142.18,142.1,3.33083903]
[1768747803394,7.00136666,142.17,142.1,3.33083903]
[1768747803694,2.11870389,142.17,142.1,3.33083903]
[1768747804990,1.77486317,142.16,142.1,3.33083903]
[1768747811000,0.3430042,142.17,142.1,3.33083903]
[1768747811191,2.11786737,142.17,142.1,3.33083903]
[1768747814792,0.3430042,142.17,142.1,3.33083903]
[1768747814996,2.11786737,142.17,142.1,3.33083903]
[1768747836016,2.02130599,142.15,142.1,3.33083903]
[1768747836619,2.02130599,142.15,142.07,1.77486317]
[1768747836620,2.08316392,142.14,142.07,4.13094266]
[1768747841427,7.59773085,142.13,142.07,4.13094266]
[1768747841728,2.38170379,142.13,142.07,4.13094266]
[1768747844226,4.15656696,142.13,142.07,4.13094266]
[1768747844827,2.55271607,142.12,142.05,5.90580583]
[1768747845230,2.55271607,142.12,142.06,4.13094266]
[1768747856443,5.00114759,142.14,142.06,4.13094266]
[1768747857844,3.27404821,142.13,142.06,4.13094266]
[1768747858248,3.32126141,142.15,142.08,4.3141027]
[1768747858441,5.20480505,142.14,142.08,4.3141027]
[1768747858642,5.09612458,142.15,142.08,4.3141027]
[1768747858946,5.20477569,142.14,142.08,4.3141027]
[1768747859134,3.32126141,142.15,142.08,4.3141027]
[1768747859336,5.20466359,142.14,142.08,4.3141027]
[1768747859639,3.32126141,142.15,142.08,4.3141027]
[1768747859835,5.2046655,142.14,142.08,4.3141027]
[1768747860040,3.32126141,142.15,142.08,4.3141027]
[1768747860242,5.20469178,142.14,142.08,4.3141027]
[1768747860550,3.32126141,142.15,142.08,4.3141027]
[1768747860748,5.20423052,142.14,142.08,4.3141027]
[1768747861045,3.32126141,142.15,142.08,4.3141027]
[1768747861248,5.20390292,142.14,142.08,4.3141027]
[1768747861447,3.32126141,142.15,142.08,4.3141027]
[1768747861647,5.20385261,142.14,142.08,4.3141027]
[1768747861844,3.32126141,142.15,142.08,4.3141027]
[1768747862044,5.20385261,142.14,142.08,4.3141027]
[1768747862244,3.32126141,142.15,142.08,4.3141027]
[1768747862548,5.20388175,142.14,142.08,4.3141027]
[1768747862848,3.32126141,142.15,142.08,4.3141027]
[1768747863150,5.20820009,142.14,142.08,4.3141027]
[1768747863448,3.32126141,142.15,142.08,4.3141027]
[1768747863649,5.20781494,142.14,142.08,4.3141027]
[1768747863849,3.32126141,142.15,142.08,4.3141027]
[1768747864051,5.20781167,142.14,142.08,4.3141027]
[1768747864250,3.32126141,142.15,142.08,4.3141027]
[1768747864443,5.20795549,142.14,142.08,4.3141027]
[1768747864644,5.09612458,142.15,142.08,4.3141027]
[1768747864848,5.20793872,142.14,142.08,4.3141027]
[1768747865147,5.09666926,142.15,142.08,4.3141027]
[1768747865350,5.20814255,142.14,142.08,4.3141027]
[1768747865552,5.09666926,142.15,142.08,4.3141027]
[1768747865752,5.20814255,142.14,142.08,4.3141027]
[1768747865952,5.09666926,142.15,142.08,4.3141027]
[1768747866249,5.20814255,142.14,142.08,4.3141027]
[1768747866450,5.09666926,142.15,142.08,4.3141027]
[1768747866652,5.20840812,142.14,142.08,4.3141027]
[1768747866845,5.09666926,142.15,142.08,4.3141027]
[1768747867044,5.20840812,142.14,142.08,4.3141027]
[1768747867253,5.09666926,142.15,142.08,4.3141027]
[1768747867549,5.20873776,142.14,142.08,4.3141027]
[1768747867752,3.32126141,142.15,142.08,4.3141027]
[1768747867944,5.20871844,142.14,142.08,4.3141027]
[1768747868144,5.09666926,142.15,142.08,4.3141027]
[1768747868347,5.20911681,142.14,142.08,4.3141027]
[1768747868547,5.09666926,142.15,142.08,4.3141027]
[1768747868753,5.20911681,142.14,142.08,4.3141027]
[1768747869051,5.09666926,142.15,142.08,4.3141027]
[1768747869252,5.20958466,142.14,142.08,4.3141027]
[1768747869552,5.09666926,142.15,142.08,4.3141027]
[1768747869755,5.20958472,142.14,142.08,4.3141027]
[1768747870056,5.09666926,142.15,142.08,4.3141027]
[1768747870354,5.21012879,142.14,142.08,4.3141027]
[1768747870554,5.09666926,142.15,142.08,4.3141027]
[1768747870755,5.21012806,142.14,142.08,4.3141027]
[1768747870951,5.09666926,142.15,142.08,4.3141027]
[1768747871146,5.21012806,142.14,142.08,4.3141027]
[1768747871346,5.09666926,142.15,142.08,4.3141027]
[1768747871543,5.21075491,142.14,142.08,4.3141027]
[1768747871757,5.09666926,142.15,142.08,4.3141027]
[1768747871958,5.21012416,142.14,142.08,4.3141027]
[1768747872157,5.09666926,142.15,142.08,4.3141027]
[1768747872344,5.21050874,142.14,142.08,4.3141027]
[1768747872549,5.09666926,142.15,142.08,4.3141027]
[1768747872751,3.32126141,142.15,142.08,4.3141027]
[1768747878951,3.32126141,142.15,142.09,1.77540785]
[1768747879256,3.32126141,142.15,142.1,4.3141027]
[1768747879751,4.19664882,142.17,142.1,4.3141027]
[1768747879948,5.21613803,142.16,142.1,4.3141027]
[1768747880151,0.05264588,142.14,142.11,0.04751498]
[1768747881154,0.05264588,142.14,142.11,4.36161768]
[1768747881362,4.19664882,142.17,142.11,4.36161768]
[1768747881558,5.21580304,142.16,142.11,4.36161768]
[1768747881860,4.19664882,142.17,142.11,4.36161768]
[1768747882063,5.21462861,142.16,142.11,4.36161768]
[1768747882256,4.19664882,142.17,142.11,4.36161768]
[1768747882560,5.21372162,142.16,142.11,4.36161768]
[1768747882759,4.19664882,142.17,142.11,4.36161768]
[1768747882960,5.21372162,142.16,142.11,4.36161768]
[1768747883161,4.19664882,142.17,142.11,4.36161768]
[1768747886160,4.47679291,142.2,142.11,4.36161768]
[1768747886360,6.25220076,142.18,142.11,4.36161768]
[1768747886560,6.25220076,142.18,142.11,4.3141027]
[1768747886865,6.25220076,142.2,142.12,5.03176008]
[1768747887062,5.21113945,142.19,142.13,5.07704451]
[1768747887263,4.51018302,142.19,142.13,5.07704451]
[1768747889468,1.77540785,142.2,142.13,5.07704451]
[1768747889769,5.20871801,142.19,142.13,5.07704451]
[1768747890064,1.77540785,142.2,142.13,5.07704451]
[1768747890263,5.20758531,142.19,142.13,5.07704451]
[1768747890464,1.77540785,142.2,142.13,5.07704451]
[1768747890664,5.20758531,142.19,142.13,5.07704451]
[1768747890864,1.77540785,142.2,142.13,5.07704451]
[1768747892370,6.44689466,142.2,142.15,6.3339]
[1768747893265,6.44689466,142.2,142.16,0.04490225]
[1768747893767,4.70261164,142.19,142.15,6.3339]
[1768747895068,6.47801949,142.19,142.15,6.3339]
[1768747895263,4.70261164,142.19,142.15,6.3339]
[1768747897575,4.70261164,142.19,142.16,0.04791523]
[1768747898462,4.70261164,142.19,142.13,6.3347]
[1768747898675,4.83407059,142.17,142.13,6.3347]
[1768747899075,1.77540785,142.18,142.13,11.5250175]
[1768747899878,1.77540785,142.18,142.14,0.04451961]
[1768747900172,6.6383279,142.18,142.14,0.04451961]
[1768747902381,4.86292005,142.18,142.14,0.04451961]
[1768747902679,1.77540785,142.17,142.14,0.04451961]
[1768747905180,4.86292005,142.18,142.14,6.37901961]
[1768747905381,6.6383279,142.18,142.14,6.37901961]
[1768747909276,4.86292005,142.18,142.14,6.37901961]
[1768747909482,6.6383279,142.18,142.14,6.37901961]
[1768747909982,4.86292005,142.18,142.14,6.37901961]
[1768747910282,6.6383279,142.18,142.14,6.37901961]
[1768747912484,4.86292005,142.18,142.14,6.37901961]
[1768747912678,6.6383279,142.18,142.14,6.37901961]
[1768747918088,4.86292005,142.18,142.14,6.37901961]
[1768747918289,6.6383279,142.18,142.14,6.37901961]
[1768747920694,1.77540785,142.18,142.14,11.62748673]
[1768747923795,5.36078118,142.17,142.14,6.37901961]
[1768747923990,5.36078118,142.17,142.14,0.04451961]
[1768747926901,7.13542035,142.17,142.14,0.04451961]
[1768747927690,7.19772855,142.15,142.1,6.3361]
[1768747929106,0.04684359,142.14,142.1,6.3361]
[1768747937314,0.04684359,142.14,142.1,11.58456712]
[1768747940919,0.04684359,142.14,142.1,5.24846712]
[1768747993358,1.77505692,142.16,142.1,5.24846712]
[1768747993552,5.22969952,142.15,142.1,5.24846712]
[1768747993751,1.77505692,142.16,142.1,5.24846712]
[1768747993952,5.22974646,142.15,142.1,5.24846712]
[1768747994152,1.77505692,142.16,142.1,5.24846712]
[1768747994352,5.22974074,142.15,142.1,5.24846712]
[1768747994556,1.77505692,142.16,142.1,5.24846712]
[1768747994756,0.05182634,142.14,142.1,5.24846712]
[1768748008471,1.77505692,142.19,142.11,5.06921898]
[1768748008667,5.23003062,142.18,142.11,5.06921898]
[1768748008858,5.23003062,142.17,142.11,5.06921898]
[1768748009063,0.06829442,142.16,142.11,5.06921898]
[1768748009273,1.77505692,142.19,142.11,5.06921898]
[1768748009771,1.77505692,142.19,142.14,5.11891749]
[1768748010272,0.05022911,142.16,142.14,5.11891749]
[1768748012363,1.77505692,142.19,142.14,5.11891749]
[1768748016575,3.99442106,142.2,142.14,5.11891749]
[1768748016777,1.77505692,142.19,142.14,5.11891749]
[1768748018376,6.71693923,142.19,142.14,5.11891749]
[1768748037602,1.77505692,142.17,142.14,0.04969851]
[1768748037801,1.77505692,142.17,142.12,4.73071126]
[1768748042606,6.20618785,142.17,142.12,4.73071126]
[1768748044606,1.77505692,142.16,142.12,4.73071126]
[1768748045409,4.43113093,142.17,142.12,4.73071126]
[1768748045609,1.77505692,142.16,142.12,4.73071126]
[1768748045808,6.20618785,142.17,142.12,4.73071126]
[1768748046004,4.43113093,142.17,142.12,4.73071126]
[1768748046210,6.20618785,142.17,142.12,4.73071126]
[1768748048911,6.20593043,142.17,142.12,4.73071126]
[1768748054919,4.43113093,142.16,142.08,4.73071126]
[1768748055118,4.43113093,142.16,142.1,4.73071126]
[1768748066025,4.43113093,142.16,142.12,0.04787504]
[1768748104449,0.04827966,142.15,142.12,0.04787504]
[1768748104655,8.1070995,142.2,142.12,6.35713131]
[1768748106551,4.14419147,142.19,142.12,6.35713131]
[1768748106753,4.14419147,142.19,142.12,4.58233181]
[1768748107560,10.47669147,142.19,142.12,0.04787504]
[1768748107759,4.14419147,142.17,142.12,0.04787504]
[1768748138588,1.77459178,142.14,142.07,8.79181009]
[1768748138785,4.34532461,142.13,142.06,4.08219668]
[1768748139779,1.77459178,142.14,142.06,4.08219668]
[1768748139780,4.34532461,142.11,142.06,4.08219668]
[1768748140389,4.34532461,142.11,142.07,0.0442604]
[1768748183224,9.58808161,142.1,142.07,0.0442604]
[1768748183420,4.30325677,142.1,142.07,0.0442604]
[1768748194535,4.30325677,142.1,142.02,4.165666]
[1768748194739,4.30325677,142.08,142.03,1.77588952]
[1768748194944,9.53552505,142.07,142.03,1.77588952]
[1768748195138,4.30325677,142.07,142.03,1.77588952]
[1768748196032,0.05344789,142.06,142.03,1.77588952]
[1768748196442,4.15626622,142.06,141.97,4.3184567]
[1768748196638,4.15626622,142.06,142.0,4.3184567]
[1768748196842,4.10281833,142.06,142.02,1.77588952]
[1768748197243,0.0533828,142.04,142.02,1.77588952]
[1768748197435,4.10281833,142.06,142.02,1.77588952]
[1768748197632,4.10281833,142.06,142.02,1.8268873]
[1768748200236,4.10281833,142.06,142.02,0.05099778]
[1768748200438,4.10281833,142.06,142.02,1.8268873]
[1768748200846,4.10281833,142.06,142.02,0.05099778]
[1768748201146,4.10281833,142.06,142.02,1.8268873]
[1768748202446,6.3352,142.13,142.04,1.77588952]
[1768748202641,5.21914913,142.12,142.04,1.77588952]
[1768748202947,5.21914913,142.11,142.04,6.09434622]
[1768748203140,5.21914913,142.1,142.07,0.04885392]
[1768748203343,5.21914913,142.09,142.07,0.04885392]
[1768748203546,1.77588952,142.14,142.07,0.04885392]
[1768748203747,5.21918002,142.13,142.07,0.04885392]
[1768748203943,5.21918002,142.12,142.07,0.04885392]
[1768748204139,5.21918002,142.11,142.07,0.04885392]
[1768748204339,5.21918002,142.1,142.07,0.04885392]
[1768748204643,0.99515877,142.13,142.07,0.04885392]
[1768748204846,0.99515877,142.11,142.07,0.04885392]
[1768748205046,6.21425202,142.1,142.07,0.04885392]
[1768748205346,0.99515877,142.1,142.07,0.04885392]
[1768748206444,0.99515877,142.1,142.07,1.82474344]
[1768748206644,0.99515877,142.1,142.07,0.04885392]
[1768748213957,1.02896228,142.08,142.01,4.45672833]
[1768748214157,1.02896228,142.08,142.01,6.23261785]
[1768748214353,1.02896228,142.08,142.01,4.45672833]
[1768748214558,1.02896228,142.08,142.01,6.23261785]
[1768748215057,1.03728893,142.07,142.0,1.77588952]
[1768748215251,1.09195385,142.06,142.0,6.23261785]
[1768748215447,1.09195385,142.06,142.0,4.45672833]
[1768748215652,1.09195385,142.06,142.0,6.23261785]
[1768748216257,1.09195385,142.06,142.01,4.45672833]
[1768748217258,1.77588952,142.08,142.03,6.23261785]
[1768748217259,1.06161335,142.08,142.03,6.23261785]
[1768748217859,1.06161335,142.08,142.03,4.45672833]
[1768748218060,1.06161335,142.08,142.03,6.23261785]
[1768748219156,1.06161335,142.08,142.04,0.04531068]
[1768748241988,2.83827748,142.08,142.04,0.04531068]